bitfinex-derivatives/quotes_SOLF0:USTF0_20250709
["timestamp","ask_amount","ask_price","bid_price","bid_amount"]
[1752071464235,563.06,153.46,153.34,12.15674467]
[1752071464436,563.06,153.46,153.27,2.3241]
[1752071464437,563.06,153.46,153.37,12.15674467]
[1752071464636,12.15674467,153.48,153.37,12.15674467]
[1752071465033,0.05011358,153.43,153.37,12.15674467]
[1752071465434,0.05011358,153.43,153.27,2.3241]
[1752071465435,0.05011358,153.43,153.4,12.15674467]
[1752071465734,6.5182,153.4,153.37,12.15674467]
[1752071465934,6.5182,153.4,153.35,14.37954467]
[1752071466135,6.56505898,153.4,153.35,20.89944467]
[1752071466327,0.04685898,153.4,153.35,14.37954467]
[1752071466831,0.04685898,153.4,153.37,12.14512251]
[1752071467032,0.04685898,153.4,153.35,2.2228]
[1752071467234,2.1719,153.52,153.38,12.14512251]
[1752071467534,2.1719,153.52,153.37,0.04628972]
[1752071467734,2.1719,153.52,153.43,12.14512251]
[1752071468334,565.2636,153.59,153.48,12.14512251]
[1752071468637,14.31042251,153.58,153.48,12.14512251]
[1752071468832,14.31042251,153.58,153.36,563.02]
[1752071469029,12.14512251,153.53,153.42,12.14512251]
[1752071469234,12.14512251,153.54,153.42,12.14512251]
[1752071469933,12.14512251,153.54,153.37,221.26]
[1752071470139,12.14512251,153.54,153.42,12.14512251]
[1752071470438,12.14512251,153.52,153.4,12.14512251]
[1752071470636,12.14512251,153.52,153.36,563.02]
[1752071470833,12.14512251,153.5,153.38,12.14512251]
[1752071471029,2.1406,153.49,153.38,12.14512251]
[1752071471230,12.14512251,153.47,153.35,14.36792251]
[1752071471434,12.14512251,153.47,153.42,9.651e-05]
[1752071471640,0.04850097,153.45,153.42,9.651e-05]
[1752071471838,6.5167,153.43,153.42,9.651e-05]
[1752071473632,0.04850097,153.45,153.42,9.651e-05]
[1752071474436,6.5167,153.43,153.42,9.651e-05]
[1752071475037,6.5163,153.44,153.42,9.651e-05]
[1752071475238,0.04850097,153.45,153.42,9.651e-05]
[1752071475239,0.04850097,153.45,153.43,12.14512251]
[1752071475642,0.04850097,153.45,153.42,9.651e-05]
[1752071476141,0.04850097,153.45,153.44,6.5162]
[1752071476343,12.14512251,153.55,153.43,12.14512251]
[1752071476536,2.3087,153.56,153.43,12.14512251]
[1752071476845,12.14512251,153.51,153.39,12.14512251]
[1752071477039,12.14512251,153.51,153.36,2.3337]
[1752071477241,12.14512251,153.48,153.37,12.14512251]
[1752071477448,2.3087,153.47,153.37,12.14512251]
[1752071477647,14.45382251,153.47,153.32,565.2401]
[1752071477946,14.45382251,153.47,153.34,12.14512251]
[1752071478149,14.45382251,153.47,153.4,0.04396637]
[1752071478542,6.5175,153.41,153.4,6.637e-05]
[1752071479151,18.66262251,153.41,153.4,6.637e-05]
[1752071479545,6.5175,153.41,153.4,6.637e-05]
[1752071480252,0.04194284,153.45,153.4,6.637e-05]
[1752071480746,6.5175,153.41,153.4,6.637e-05]
[1752071481248,13.0375,153.41,153.4,6.637e-05]
[1752071481948,6.5175,153.41,153.4,6.637e-05]
[1752071482750,18.66262251,153.41,153.4,6.637e-05]
[1752071483448,6.5175,153.41,153.4,6.637e-05]
[1752071484847,0.04194284,153.45,153.4,6.637e-05]
[1752071485954,12.18706535,153.45,153.4,6.637e-05]
[1752071486454,0.04194284,153.45,153.4,6.637e-05]
[1752071486848,0.04194284,153.45,153.41,12.14512251]
[1752071487051,0.04194284,153.45,153.4,6.637e-05]
[1752071487451,6.5166,153.44,153.4,6.637e-05]
[1752071487651,0.04194284,153.45,153.4,6.637e-05]
[1752071488156,0.04194284,153.45,153.41,6.5173]
[1752071488349,0.04194284,153.45,153.4,6.637e-05]
[1752071488545,6.5164,153.44,153.4,6.51796637]
[1752071488757,0.04194284,153.45,153.4,6.637e-05]
[1752071489155,0.04194284,153.45,153.41,12.14512251]
[1752071489551,6.55804284,153.45,153.41,12.14512251]
[1752071489856,0.04194284,153.45,153.4,6.637e-05]
[1752071490052,6.5165,153.44,153.4,18.66288888]
[1752071490252,0.04194284,153.45,153.4,18.66288888]
[1752071490548,0.04194284,153.45,153.4,12.14518888]
[1752071490956,0.04194284,153.45,153.4,6.637e-05]
[1752071491156,6.5175,153.41,153.4,6.637e-05]
[1752071493849,2.36354284,153.45,153.4,6.637e-05]
[1752071493850,0.04194284,153.45,153.4,6.637e-05]
[1752071494261,6.517,153.43,153.4,6.637e-05]
[1752071494456,0.04194284,153.45,153.4,6.637e-05]
[1752071494962,6.5175,153.41,153.4,6.637e-05]
[1752071495152,0.04194284,153.45,153.4,6.637e-05]
[1752071495354,6.517,153.43,153.4,6.637e-05]
[1752071495557,0.04194284,153.45,153.4,6.637e-05]
[1752071495862,12.18706535,153.45,153.4,6.637e-05]
[1752071496059,6.5175,153.41,153.4,6.637e-05]
[1752071498452,0.04194284,153.45,153.4,6.637e-05]
[1752071499054,6.5175,153.41,153.4,6.637e-05]
[1752071499653,6.52,153.41,153.3,12.10096379]
[1752071499858,12.14512251,153.37,153.28,12.10096379]
[1752071500362,6.5213,153.33,153.27,12.10096379]
[1752071500563,12.14512251,153.37,153.27,12.10096379]
[1752071500865,6.5216,153.32,153.29,6.5224]
[1752071501157,2.2649,153.4,153.25,16.42966379]
[1752071501158,6.522,153.31,153.25,16.42966379]
[1752071501859,15.3013,153.4,153.28,12.14512251]
[1752071501860,3.656e-05,153.3,153.28,12.14512251]
[1752071502062,12.14512251,153.44,153.29,249.27882975]
[1752071502367,2.2649,153.44,153.34,12.11315819]
[1752071502760,2.2649,153.44,153.35,12.14512251]
[1752071503161,12.14512251,153.48,153.36,12.11315819]
[1752071503362,12.14512251,153.48,153.38,0.04640903]
[1752071503758,12.14512251,153.48,153.42,6.517]
[1752071503963,6.5162,153.45,153.42,6.517]
[1752071504262,12.14512251,153.48,153.41,0.04584255]
[1752071504663,14.32382251,153.5,153.41,0.04584255]
[1752071504966,2.1787,153.5,153.41,12.19096506]
[1752071505662,2.1787,153.5,153.41,0.04584255]
[1752071507065,2.3203,153.55,153.42,12.14512251]
[1752071507266,2.3203,153.55,153.42,14.28302251]
[1752071507467,2.3203,153.55,153.45,12.14512251]
[1752071507865,2.3203,153.55,153.47,0.04366128]
[1752071508563,6.5145,153.48,153.47,0.04366128]
[1752071508762,14.46542251,153.55,153.47,0.04366128]
[1752071509570,2.1959,153.56,153.48,6.5145]
[1752071509763,6.5138,153.5,153.47,0.04366128]
[1752071509976,2.1959,153.56,153.48,6.5145]
[1752071510269,2.1959,153.56,153.48,18.65962251]
[1752071510769,2.1959,153.56,153.48,12.14512251]
[1752071511063,6.5137,153.51,153.5,0.04795204]
[1752071511267,575.08512251,153.59,153.5,0.04795204]
[1752071511463,2.3201,153.59,153.5,12.19307455]
[1752071512065,575.7539,153.66,153.52,12.14512251]
[1752071512261,12.14512251,153.59,153.5,0.04795204]
[1752071512467,6.5131,153.52,153.48,2.2532]
[1752071512667,13.017,153.63,153.52,6.5126]
[1752071512668,12.14512251,153.61,153.52,6.5126]
[1752071512873,12.14512251,153.61,153.53,0.04767907]
[1752071513168,6.511,153.57,153.53,12.19280158]
[1752071513361,221.2888,153.65,153.53,12.19280158]
[1752071513562,221.2888,153.65,153.53,12.14512251]
[1752071513868,2.3488,153.65,153.57,0.04140183]
[1752071514260,12.14512251,153.7,153.57,12.18652434]
[1752071514466,2.3488,153.69,153.59,12.14512251]
[1752071514670,6.5076,153.65,153.59,12.14512251]
[1752071514865,2.3488,153.69,153.62,6.5082]
[1752071515170,2.3488,153.69,153.62,0.04476249]
[1752071515669,6.5073,153.66,153.62,0.04476249]
[1752071515871,2.3488,153.69,153.62,6.55306249]
[1752071516267,6.5065,153.67,153.62,12.189885]
[1752071516472,12.14512251,153.72,153.63,6.508]
[1752071516674,12.14512251,153.72,153.62,12.189885]
[1752071516973,577.08902251,153.73,153.62,12.14512251]
[1752071517161,12.14512251,153.71,153.65,0.04148223]
[1752071517367,6.5069,153.66,153.65,8.223e-05]
[1752071519075,13.0069,153.66,153.51,18.62605819]
[1752071519272,4.4131,153.65,153.5,16.67392251]
[1752071519470,6.5114,153.56,153.5,16.67392251]
[1752071519667,4.4131,153.65,153.52,12.14512251]
[1752071519867,4.4131,153.65,153.5,4.5288]
[1752071519868,12.14512251,153.64,153.54,12.14512251]
[1752071520067,4.4131,153.65,153.56,6.5109]
[1752071520373,12.14512251,153.59,153.48,12.14512251]
[1752071520671,12.13650303,153.53,153.42,8.98619899]
[1752071520869,12.1376091,153.56,153.37,8.98619899]
[1752071521171,12.18134781,153.49,153.37,12.1376091]
[1752071521474,6.5163,153.44,153.37,12.1376091]
[1752071521672,12.1376091,153.49,153.37,6.5189]
[1752071521973,0.04464482,153.42,153.36,2.2952]
[1752071522169,14.4400091,153.52,153.41,12.1376091]
[1752071522377,2.3024,153.52,153.44,12.1376091]
[1752071522571,2.2634,153.55,153.44,12.1376091]
[1752071522768,2.3024,153.58,153.44,12.1376091]
[1752071522979,12.1376091,153.57,153.45,2.2952]
[1752071523275,2.3024,153.58,153.47,12.1376091]
[1752071523471,2.3024,153.58,153.49,0.04188333]
[1752071524066,12.1376091,153.56,153.49,0.04188333]
[1752071524378,12.1376091,153.5,153.42,8.98619899]
[1752071524678,217.3,153.55,153.36,12.1376091]
[1752071524679,12.1376091,153.47,153.36,14.3323091]
[1752071524875,12.1376091,153.47,153.36,11.18089899]
[1752071525075,12.1376091,153.47,153.36,23.31850809]
[1752071525274,6.5169,153.43,153.36,23.31850809]
[1752071525476,2.1429,153.53,153.36,14.3323091]
[1752071525477,12.1376091,153.49,153.36,14.3323091]
[1752071525671,12.1376091,153.49,153.36,23.31850809]
[1752071525672,0.04213357,153.43,153.36,23.31850809]
[1752071525974,0.04213357,153.43,153.36,14.3323091]
[1752071526174,0.04213357,153.43,153.36,11.18089899]
[1752071526376,0.04213357,153.43,153.39,12.1376091]
[1752071526675,12.1376091,153.52,153.42,12.1376091]
[1752071526879,2.1429,153.53,153.42,12.1376091]
[1752071527271,2.1429,153.53,153.44,12.1376091]
[1752071527874,6.5145,153.48,153.47,0.04229643]
[1752071528476,13.0196,153.6,153.47,0.04229643]
[1752071528672,12.1376091,153.58,153.47,12.17990553]
[1752071528871,2.2467,153.6,153.5,12.1376091]
[1752071529270,2499.4,153.73,153.52,12.1376091]
[1752071529271,12.1376091,153.64,153.52,12.1376091]
[1752071529975,12.1376091,153.64,153.55,0.04787017]
[1752071530175,16.5400091,153.65,153.55,0.04787017]
[1752071530571,6.5106,153.58,153.54,12.1376091]
[1752071530873,4.4024,153.65,153.58,0.04720699]
[1752071531270,2.1557,153.65,153.56,12.1376091]
[1752071531471,2.1557,153.65,153.6,0.0418008]
[1752071531971,2.1557,153.65,153.6,8e-07]
[1752071532171,6.509,153.61,153.6,8e-07]
[1752071534367,6.5135,153.51,153.47,13.53249899]
[1752071534570,12.1376091,153.58,153.47,2.2029]
[1752071534777,2.1399,153.57,153.45,12.1376091]
[1752071535572,2.1399,153.57,153.45,8.98619899]
[1752071535872,14.2775091,153.57,153.46,12.1376091]
[1752071536466,6.5131,153.52,153.46,12.1376091]
[1752071536670,14.2775091,153.57,153.46,12.1376091]
[1752071536867,14.2775091,153.57,153.48,6.5145]
[1752071537072,2.1399,153.57,153.46,12.1376091]
[1752071537272,2.1399,153.57,153.46,8.98619899]
[1752071537273,14.2775091,153.57,153.46,8.98619899]
[1752071537574,14.2775091,153.57,153.45,12.1376091]
[1752071537972,6.5136,153.51,153.47,6.5147]
[1752071538170,14.2775091,153.57,153.45,21.12380809]
[1752071538670,14.2775091,153.57,153.46,12.1376091]
[1752071539274,2.1399,153.57,153.46,21.12380809]
[1752071539667,2.1399,153.57,153.49,6.5139]
[1752071539867,2.1399,153.57,153.47,12.1376091]
[1752071540072,14.2775091,153.57,153.47,12.1376091]
[1752071540270,14.2775091,153.57,153.46,12.1376091]
[1752071540672,6.5132,153.52,153.48,6.5144]
[1752071540875,14.2775091,153.57,153.46,12.1376091]
[1752071541080,14.2775091,153.57,153.44,8.98619899]
[1752071541281,6.5135,153.51,153.48,6.5145]
[1752071541982,2.1399,153.57,153.49,12.1376091]
[1752071542172,2.1399,153.57,153.47,8.98619899]
[1752071542373,2.1399,153.57,153.49,12.1376091]
[1752071542773,6.5131,153.52,153.49,18.6516091]
[1752071542973,2.1399,153.57,153.47,21.12380809]
[1752071543177,2.1399,153.57,153.45,12.11315819]
[1752071543178,14.2775091,153.57,153.45,12.1376091]
[1752071543378,2.1399,153.57,153.47,12.1376091]
[1752071544177,12.1376091,153.56,153.45,8.98619899]
[1752071544386,12.1376091,153.56,153.44,8.98619899]
[1752071544585,12.1376091,153.53,153.43,12.1376091]
[1752071544885,13.0258,153.52,153.41,2.3422]
[1752071545586,12.1376091,153.5,153.39,8.98619899]
[1752071545785,12.1376091,153.5,153.38,12.1376091]
[1752071545987,12.1376091,153.47,153.37,8.98619899]
[1752071546187,2.3276,153.49,153.39,12.1376091]
[1752071546389,2.3276,153.49,153.4,8.98619899]
[1752071546582,2.27,153.51,153.42,21.12380809]
[1752071546777,2.27,153.51,153.43,8.98619899]
[1752071546979,2.27,153.51,153.42,21.12380809]
[1752071548086,2.27,153.51,153.43,6.5166]
[1752071548280,2.3276,153.54,153.45,12.1376091]
[1752071548481,6.5129,153.52,153.49,6.5138]
[1752071548687,2.2806,153.6,153.48,12.1376091]
[1752071548886,2.3123,153.59,153.49,8.98619899]
[1752071549383,6.5116,153.55,153.52,6.5125]
[1752071549587,2.3123,153.59,153.51,12.1376091]
[1752071549786,2.3123,153.59,153.51,21.12380809]
[1752071550283,6.511,153.57,153.54,6.512]
[1752071550491,12.1376091,153.65,153.54,12.1376091]
[1752071550686,14.4499091,153.65,153.54,12.1376091]
[1752071550891,14.4499091,153.65,153.55,6.5114]
[1752071550892,6.5103,153.58,153.55,6.5114]
[1752071551080,14.4499091,153.65,153.54,12.1376091]
[1752071551485,14.4499091,153.65,153.54,21.12380809]
[1752071551988,2.3123,153.65,153.56,12.1376091]
[1752071552192,2.3123,153.65,153.56,21.12380809]
[1752071553192,2.3123,153.65,153.56,12.1376091]
[1752071553395,14.4499091,153.65,153.54,12.1376091]
[1752071553582,6.5119,153.55,153.53,2.3107]
[1752071553784,12.1376091,153.63,153.53,2.3107]
[1752071553981,2.3123,153.65,153.56,12.1376091]
[1752071554591,2.3123,153.65,153.56,18.6486091]
[1752071554997,2.3123,153.65,153.56,12.1376091]
[1752071556400,2.3123,153.65,153.58,12.1376091]
[1752071556701,6.5091,153.61,153.58,12.1376091]
[1752071556898,2.3123,153.65,153.55,21.12380809]
[1752071557901,2.3123,153.65,153.56,8.98619899]
[1752071558099,14.4499091,153.65,153.55,8.98619899]
[1752071558300,12.1376091,153.63,153.53,2.3107]
[1752071558802,2.3123,153.65,153.56,12.1376091]
[1752071560001,2.3123,153.65,153.58,12.1376091]
[1752071560199,6.5084,153.63,153.59,6.5096]
[1752071560395,2.1468,153.68,153.58,12.1376091]
[1752071560807,6.5081,153.64,153.6,6.5092]
[1752071561002,2.1468,153.68,153.58,12.1376091]
[1752071561303,2.3342,153.72,153.62,12.1376091]
[1752071561505,14.4491091,153.71,153.6,21.12380809]
[1752071561702,6.5072,153.66,153.6,21.12380809]
[1752071561898,2.3115,153.71,153.62,12.1376091]
[1752071562095,12.1376091,153.74,153.63,12.1376091]
[1752071562296,0.04270602,153.65,153.62,9.98619899]
[1752071562607,12.1376091,153.72,153.61,9.98619899]
[1752071562803,0.0425941,153.65,153.6,21.12380809]
[1752071563000,0.0425941,153.65,153.62,12.1376091]
[1752071563202,14.4491091,153.73,153.62,12.1376091]
[1752071563403,14.4491091,153.73,153.63,12.1376091]
[1752071563599,2.3115,153.73,153.63,12.1376091]
[1752071563900,2.3115,153.73,153.63,6.5078]
[1752071564106,12.1376091,153.72,153.62,8.98619899]
[1752071564500,6.5072,153.66,153.65,0.04769082]
[1752071566498,14.4491091,153.73,153.65,0.04769082]
[1752071566698,2.3115,153.73,153.65,0.04769082]
[1752071566906,135.32205356,153.77,153.65,0.04769082]
[1752071567209,14.3182091,153.76,153.66,12.1376091]
[1752071567600,2.1806,153.76,153.69,0.04710609]
[1752071568000,13.0,153.83,153.69,12.18471519]
[1752071568199,12.1376091,153.79,153.69,12.18471519]
[1752071568399,12.1376091,153.79,153.69,12.1376091]
[1752071568705,2.1806,153.82,153.72,0.04399803]
[1752071568906,12.1376091,153.81,153.72,0.04399803]
[1752071569102,6.5038,153.74,153.72,0.04399803]
[1752071569706,6.504,153.73,153.72,0.04399803]
[1752071570011,6.504,153.73,153.72,9.803e-05]
[1752071570412,0.04319157,153.75,153.72,9.803e-05]
[1752071571207,0.04319157,153.75,153.72,12.13770713]
[1752071571508,0.04319157,153.75,153.72,9.803e-05]
[1752071572303,0.04319157,153.75,153.72,12.13770713]
[1752071572508,12.1376091,153.85,153.72,12.13770713]
[1752071572812,12.1376091,153.87,153.72,9.803e-05]
[1752071573007,12.1376091,153.87,153.74,12.1376091]
[1752071573202,12.1376091,153.85,153.74,12.1376091]
[1752071573407,12.1376091,153.84,153.75,6.5028]
[1752071573612,12.1376091,153.84,153.7,62.0]
[1752071573805,12.1376091,153.84,153.78,0.04810073]
[1752071574209,6.5014,153.79,153.78,0.04810073]
[1752071574410,12.1376091,153.84,153.78,0.04810073]
[1752071574807,6.5014,153.79,153.78,0.04810073]
[1752071575007,12.1376091,153.86,153.78,0.04810073]
[1752071575203,14.3258091,153.88,153.79,6.5013]
[1752071575403,2.1882,153.88,153.76,12.1376091]
[1752071575612,14.3258091,153.88,153.8,0.04297742]
[1752071576111,12.1376091,153.86,153.8,0.04297742]
[1752071576312,6.5006,153.81,153.8,0.04297742]
[1752071576512,2.1882,153.88,153.8,0.04297742]
[1752071576808,2.1882,153.88,153.8,6.54367742]
[1752071577217,561.98,153.93,153.82,12.1376091]
[1752071577508,2.1982,153.92,153.8,0.04297742]
[1752071577713,12.1376091,153.91,153.81,12.1376091]
[1752071577914,12.1376091,153.91,153.84,0.04390122]
[1752071578110,2.1982,153.92,153.84,0.04390122]
[1752071578306,14.3358091,153.92,153.84,0.04390122]
[1752071578507,2.1982,153.92,153.84,0.04390122]
[1752071579311,574.7054,154.0,153.84,0.04390122]
[1752071579513,12.1376091,153.96,153.85,12.1376091]
[1752071579713,2.192,153.98,153.81,1.0]
[1752071579714,12.1376091,153.94,153.81,1.0]
[1752071579914,6.4979,153.88,153.84,6.499]
[1752071580114,12.1376091,153.95,153.82,12.1376091]
[1752071580310,12.1376091,153.93,153.84,0.04204006]
[1752071580511,6.4989,153.85,153.84,4.006e-05]
[1752071580820,6.4989,153.85,153.69,12.1376091]
[1752071580821,12.1376091,153.85,153.69,12.1376091]
[1752071581013,573.6976091,153.89,153.69,2.2644]
[1752071581014,12.1376091,153.8,153.69,2.2644]
[1752071581420,12.1376091,153.78,153.69,2.2644]
[1752071581614,12.1376091,153.76,153.69,2.2644]
[1752071581815,12.1376091,153.74,153.66,561.56]
[1752071582016,0.04395462,153.75,153.66,573.6976091]
[1752071582216,13.0012,153.82,153.66,561.56]
[1752071582514,0.04334605,153.72,153.68,6.5061]
[1752071582716,12.1376091,153.82,153.72,0.04927646]
[1752071583021,12.1376091,153.83,153.71,12.1376091]
[1752071583210,12.1376091,153.83,153.67,12.1376091]
[1752071583211,4.3301,153.84,153.74,12.1376091]
[1752071583614,4.3301,153.84,153.75,6.503]
[1752071583818,4.3301,153.84,153.73,12.1376091]
[1752071584018,4.3301,153.84,153.77,0.04542505]
[1752071584315,6.5018,153.78,153.77,0.04542505]
[1752071584812,2.192,153.84,153.77,0.04542505]
[1752071585119,561.56,153.89,153.8,6.501]
[1752071585318,2.3507,153.88,153.78,12.1376091]
[1752071585717,6.4986,153.86,153.82,6.5001]
[1752071585918,6.4986,153.86,153.8,12.1376091]
[1752071585919,2.3507,153.88,153.81,0.04803485]
[1752071586115,12.1376091,153.92,153.82,12.1376091]
[1752071586516,14.4883091,153.94,153.82,12.1376091]
[1752071586717,6.4985,153.86,153.85,0.04705305]
[1752071587111,12.1376091,153.93,153.85,0.04705305]
[1752071587316,6.4985,153.86,153.85,0.04705305]
[1752071589218,6.4978,153.88,153.85,0.04705305]
[1752071589418,2.3507,153.94,153.85,12.18466215]
[1752071589821,6.4967,153.91,153.85,12.18466215]
[1752071590020,2.3507,153.94,153.87,12.1376091]
[1752071590421,2.3507,153.94,153.84,6.499]
[1752071590717,2.3507,153.94,153.89,9.399e-05]
[1752071590921,6.4968,153.9,153.89,9.399e-05]
[1752071591119,12.1376091,153.91,153.79,2.2644]
[1752071591318,6.5008,153.81,153.79,2.2644]
[1752071591518,6.5008,153.81,153.77,6.502]
[1752071591715,12.1376091,153.87,153.76,12.1376091]
[1752071591716,2.2617,153.86,153.76,12.1376091]
[1752071591919,6.5,153.83,153.76,12.1376091]
[1752071592115,2.2617,153.86,153.78,12.1376091]
[1752071592618,6.5001,153.83,153.79,6.5013]
[1752071592824,2.2617,153.86,153.78,12.1376091]
[1752071593027,0.04153822,153.84,153.75,561.64]
[1752071593225,0.04153822,153.84,153.77,6.5022]
[1752071593422,0.04153822,153.84,153.75,561.64]
[1752071594124,0.04153822,153.84,153.76,12.1376091]
[1752071594324,6.5008,153.81,153.77,6.502]
[1752071594526,0.04153822,153.84,153.77,6.502]
[1752071594726,0.04153822,153.84,153.76,12.1376091]
[1752071594924,0.04153822,153.84,153.78,12.1376091]
[1752071595226,0.04153822,153.84,153.75,561.64]
[1752071595227,0.04153822,153.84,153.76,12.1376091]
[1752071595424,0.04153822,153.84,153.75,561.64]
[1752071595828,6.5014,153.79,153.76,6.5024]
[1752071596027,6.5014,153.79,153.75,561.64]
[1752071596224,12.1376091,153.85,153.75,561.64]
[1752071596420,0.04192706,153.79,153.75,561.64]
[1752071597227,0.04192706,153.79,153.75,568.1428]
[1752071597426,0.04192706,153.79,153.73,2.1929]
[1752071597731,6.503,153.76,153.72,6.5041]
[1752071598132,12.1376091,153.85,153.72,12.1376091]
[1752071598325,0.04766445,153.76,153.72,12.1376091]
[1752071598530,0.04766445,153.76,153.74,12.1376091]
[1752071598730,12.1376091,153.85,153.77,0.04815056]
[1752071598930,6.5019,153.78,153.77,0.04815056]
[1752071599238,12.1376091,153.83,153.72,12.1376091]
[1752071599531,12.1376091,153.83,153.7,14.2619091]
[1752071599725,12.1376091,153.83,153.72,12.1376091]
[1752071599930,16.6730091,153.86,153.77,6.5019]
[1752071600130,16.6730091,153.86,153.75,12.18568575]
[1752071600334,16.6730091,153.86,153.75,12.1376091]
[1752071600631,16.6730091,153.86,153.79,6.91e-05]
[1752071600632,12.1376091,153.82,153.79,6.91e-05]
[1752071601026,6.501,153.8,153.79,6.91e-05]
[1752071601225,18.6386091,153.8,153.79,6.91e-05]
[1752071602030,6.501,153.8,153.79,6.91e-05]
[1752071605941,0.04105273,153.81,153.79,6.91e-05]
[1752071606741,6.501,153.8,153.79,6.91e-05]
[1752071608944,6.54185273,153.81,153.79,6.91e-05]
[1752071609132,0.04105273,153.81,153.79,6.91e-05]
[1752071609738,6.54175273,153.81,153.79,6.91e-05]
[1752071609938,0.04105273,153.81,153.79,6.91e-05]
[1752071610337,0.04105273,153.81,153.79,12.1376782]
[1752071610537,0.04105273,153.81,153.79,6.91e-05]
[1752071611339,6.501,153.8,153.79,6.91e-05]
[1752071611736,0.04105273,153.81,153.79,6.91e-05]
[1752071612440,6.501,153.8,153.79,6.91e-05]
[1752071616540,13.001,153.8,153.79,6.91e-05]
[1752071616943,13.001,153.8,153.68,571.44159436]
[1752071617143,12.1376091,153.76,153.67,8.98159436]
[1752071617444,12.1376091,153.76,153.66,24.24630346]
[1752071617643,13.003,153.79,153.66,24.24630346]
[1752071617939,12.1376091,153.76,153.66,24.24630346]
[1752071618341,12.1376091,153.83,153.71,12.1376091]
[1752071618640,12.1376091,153.83,153.71,13.1376091]
[1752071618847,0.04349862,153.79,153.71,1.0]
[1752071619546,0.04349862,153.79,153.72,6.5041]
[1752071619948,0.04349862,153.79,153.71,1.0]
[1752071620158,0.04349862,153.79,153.71,7.5045]
[1752071620644,12.18110772,153.79,153.71,1.0]
[1752071621843,6.5044,153.72,153.71,1.0]
[1752071622046,6.5044,153.72,153.67,22.11920346]
[1752071622241,12.1376091,153.79,153.67,22.11920346]
[1752071622447,12.1376091,153.82,153.7,12.1376091]
[1752071622742,12.1376091,153.82,153.7,21.11920346]
[1752071622950,4.429,153.84,153.7,21.11920346]
[1752071623144,12.1376091,153.83,153.71,8.98159436]
[1752071623345,12.1376091,153.83,153.71,11.22969436]
[1752071623540,4.429,153.84,153.73,12.1376091]
[1752071623749,2.1654,153.84,153.76,12.1376091]
[1752071623950,561.58,153.88,153.76,12.1376091]
[1752071624149,6.5001,153.83,153.79,6.5013]
[1752071624352,561.58,153.88,153.79,12.1376091]
[1752071624554,561.58,153.88,153.79,18.6388091]
[1752071624744,561.58,153.88,153.79,12.1376091]
[1752071624945,12.1376091,153.86,153.77,2.2903]
[1752071626048,12.1376091,153.86,153.75,1.0]
[1752071626251,12.1376091,153.83,153.73,29.78040346]
[1752071626446,12.1376091,153.83,153.73,23.27670346]
[1752071626652,12.1376091,153.83,153.73,14.2951091]
[1752071626952,12.1376091,153.83,153.74,6.5035]
[1752071627153,12.1376091,153.83,153.73,23.27670346]
[1752071627353,6.503,153.76,153.73,14.2951091]
[1752071628455,6.5032,153.75,153.73,2.1575]
[1752071628857,6.5035,153.74,153.73,2.1575]
[1752071629060,12.9997,153.83,153.71,11.22969436]
[1752071629261,12.1376091,153.82,153.72,2.2536]
[1752071629462,6.5034,153.75,153.72,2.2536]
[1752071629661,12.1376091,153.82,153.73,8.98159436]
[1752071629862,12.1376091,153.82,153.72,24.37280346]
[1752071630163,6.5029,153.76,153.73,6.5038]
[1752071630357,581.0733,153.88,153.73,6.5038]
[1752071630358,600.5666,153.88,153.73,8.98159436]
[1752071630562,12.1376091,153.85,153.73,8.98159436]
[1752071630761,6.5021,153.78,153.75,6.5029]
[1752071630961,12.1376091,153.85,153.72,23.37280346]
[1752071631256,12.1376091,153.82,153.72,23.37280346]
[1752071631459,12.1376091,153.82,153.73,8.98159436]
[1752071631661,12.1376091,153.84,153.73,8.98159436]
[1752071631963,6.502,153.78,153.75,6.5029]
[1752071632163,561.58,153.88,153.75,13.1376091]
[1752071632364,12.1376091,153.87,153.75,22.11920346]
[1752071632565,6.5022,153.78,153.75,22.11920346]
[1752071632856,12.1376091,153.84,153.73,9.98159436]
[1752071633264,12.1376091,153.84,153.74,8.98159436]
[1752071633456,6.5031,153.76,153.73,9.98159436]
[1752071633658,6.5031,153.76,153.72,24.37280346]
[1752071633855,6.5031,153.76,153.73,8.98159436]
[1752071634066,6.5031,153.76,153.73,15.48529436]
[1752071634661,2.1358,153.83,153.74,8.98159436]
[1752071634866,2.1358,153.83,153.72,29.87700346]
[1752071635367,6.5034,153.75,153.72,17.73939436]
[1752071635567,12.1376091,153.81,153.72,11.23519436]
[1752071635767,12.1376091,153.81,153.72,2.2536]
[1752071636666,6.504,153.73,153.72,2.2536]
[1752071637267,6.5044,153.72,153.71,8.98159436]